[Event "Titled Tuesday Blitz September 27 Early 2022"]
[White "Schill, William"]
[Black "Shapiro, Daniel"]
[WhiteFideId "2016710"]
[BlackFideId "2001780"]
[WhiteElo "1961"]
[BlackElo "2221"]
[Result "0-1"]
[Round "09"]
[TimeControl "180+1"]
[Date "2022.09.27"]
[WhiteClock "0:00:01"]
[BlackClock "0:01:08"]

1. e4 {[%clk 0:03:00]}  c5 {[%clk 0:02:59]} 2. Nf3 {[%clk 0:02:59]}  e6 {[%clk 0:02:59]} 3. d4 {[%clk 0:02:57]}  cxd4 {[%clk 0:02:59]} 4. Nxd4 {[%clk 0:02:57]}  a6 {[%clk 0:03:00]} 5. Bd3 {[%clk 0:02:56]}  g6 {[%clk 0:03:00]} 6. Nc3 {[%clk 0:02:27]}  Bg7 {[%clk 0:03:00]} 7. Be3 {[%clk 0:02:19]}  Ne7 {[%clk 0:02:59]} 8. O-O {[%clk 0:02:07]}  Nbc6 {[%clk 0:02:58]} 9. Nde2 {[%clk 0:01:49]}  d5 {[%clk 0:02:58]} 10. exd5 {[%clk 0:01:47]}  Nxd5 {[%clk 0:02:58]} 11. Nxd5 {[%clk 0:01:34]}  Qxd5 {[%clk 0:02:56]} 12. c3 {[%clk 0:01:20]}  O-O {[%clk 0:02:54]} 13. Bc2 {[%clk 0:01:19]}  Qb5 {[%clk 0:02:32]} 14. Bb3 {[%clk 0:01:12]}  a5 {[%clk 0:02:13]} 15. a4 {[%clk 0:00:19]}  Qf5 {[%clk 0:01:52]} 16. Qc2 {[%clk 0:00:17]}  Qxc2 {[%clk 0:01:34]} 17. Bxc2 {[%clk 0:00:17]}  e5 {[%clk 0:01:35]} 18. Rfd1 {[%clk 0:00:14]}  Be6 {[%clk 0:01:34]} 19. Bb6 {[%clk 0:00:10]}  f5 {[%clk 0:01:29]} 20. Nc1 {[%clk 0:00:07]}  e4 {[%clk 0:01:25]} 21. Bb3 {[%clk 0:00:07]}  Rfe8 {[%clk 0:01:19]} 22. Bxe6+ {[%clk 0:00:06]}  Rxe6 {[%clk 0:01:19]} 23. Nb3 {[%clk 0:00:06]}  f4 {[%clk 0:01:18]} 24. Rd7 {[%clk 0:00:03]}  e3 {[%clk 0:01:15]} 25. fxe3 {[%clk 0:00:02]}  fxe3 {[%clk 0:01:15]} 26. Re1 {[%clk 0:00:02]}  Rae8 {[%clk 0:01:09]} 27. Rxb7 {[%clk 0:00:01]}  Bh6 {[%clk 0:01:08]} 0-1


[Site "https://www.chess.com"]

[Event "Titled Tuesday Blitz September 27 Early 2022"]
[White "Sebenik, Matej"]
[Black "Koziorowicz, Michal"]
[WhiteFideId "14602296"]
[BlackFideId "21809194"]
[WhiteElo "2461"]
[BlackElo "2220"]
[Result "0-1"]
[Round "09"]
[TimeControl "180+1"]
[Date "2022.09.27"]
[WhiteClock "0:00:04"]
[BlackClock "0:00:13"]

1. c4 {[%clk 0:03:00]}  Nc6 {[%clk 0:02:36]} 2. Nf3 {[%clk 0:02:58]}  e5 {[%clk 0:02:36]} 3. d3 {[%clk 0:02:58]}  f5 {[%clk 0:02:36]} 4. Nc3 {[%clk 0:02:51]}  d6 {[%clk 0:02:35]} 5. g3 {[%clk 0:02:50]}  Nf6 {[%clk 0:02:34]} 6. Bg2 {[%clk 0:02:50]}  g6 {[%clk 0:02:35]} 7. O-O {[%clk 0:02:51]}  Bg7 {[%clk 0:02:35]} 8. Rb1 {[%clk 0:02:45]}  a5 {[%clk 0:02:34]} 9. a3 {[%clk 0:02:45]}  O-O {[%clk 0:02:34]} 10. b4 {[%clk 0:02:46]}  axb4 {[%clk 0:02:34]} 11. axb4 {[%clk 0:02:46]}  h6 {[%clk 0:02:29]} 12. b5 {[%clk 0:02:34]}  Ne7 {[%clk 0:02:29]} 13. Bb2 {[%clk 0:02:32]}  g5 {[%clk 0:02:20]} 14. c5 {[%clk 0:02:05]}  Kh7 {[%clk 0:01:59]} 15. e3 {[%clk 0:01:58]}  Ng6 {[%clk 0:01:58]} 16. cxd6 {[%clk 0:01:31]}  cxd6 {[%clk 0:01:59]} 17. e4 {[%clk 0:01:31]}  f4 {[%clk 0:01:53]} 18. Nd2 {[%clk 0:01:14]}  Bg4 {[%clk 0:01:50]} 19. Qb3 {[%clk 0:00:55]}  Qd7 {[%clk 0:01:46]} 20. Nc4 {[%clk 0:00:49]}  Be6 {[%clk 0:01:17]} 21. Qb4 {[%clk 0:00:46]}  Bxc4 {[%clk 0:01:15]} 22. dxc4 {[%clk 0:00:43]}  Rac8 {[%clk 0:00:25]} 23. Rfd1 {[%clk 0:00:42]}  Qf7 {[%clk 0:00:23]} 24. Qxd6 {[%clk 0:00:24]}  Rxc4 {[%clk 0:00:19]} 25. Nd5 {[%clk 0:00:24]}  Nxe4 {[%clk 0:00:17]} 26. Bxe4 {[%clk 0:00:15]}  Rxe4 {[%clk 0:00:18]} 27. f3 {[%clk 0:00:10]}  fxg3 {[%clk 0:00:17]} 28. Nf6+ {[%clk 0:00:07]}  Bxf6 {[%clk 0:00:16]} 29. fxe4 {[%clk 0:00:07]}  Be7 {[%clk 0:00:15]} 30. Qd2 {[%clk 0:00:05]}  Nf4 {[%clk 0:00:13]} 31. hxg3 {[%clk 0:00:04]}  Bc5+ {[%clk 0:00:13]} 0-1


[Site "https://www.chess.com"]

[Event "Titled Tuesday Blitz September 27 Early 2022"]
[White "Sethuraman, S.P."]
[Black "Dardha, Daniel"]
[WhiteFideId "5021596"]
[BlackFideId "240990"]
[WhiteElo "2425"]
[BlackElo "2528"]
[Result "1-0"]
[Round "09"]
[TimeControl "180+1"]
[Date "2022.09.27"]
[WhiteClock "0:00:53"]
[BlackClock "0:00:16"]

1. d4 {[%clk 0:03:00]}  Nf6 {[%clk 0:02:58]} 2. c4 {[%clk 0:03:01]}  e6 {[%clk 0:02:57]} 3. Nf3 {[%clk 0:03:01]}  d5 {[%clk 0:02:57]} 4. Nc3 {[%clk 0:03:02]}  Bb4 {[%clk 0:02:54]} 5. Qa4+ {[%clk 0:02:58]}  Nc6 {[%clk 0:02:54]} 6. e3 {[%clk 0:02:58]}  O-O {[%clk 0:02:49]} 7. Qc2 {[%clk 0:02:57]}  Qe7 {[%clk 0:02:35]} 8. Bd2 {[%clk 0:02:50]}  Rd8 {[%clk 0:02:28]} 9. a3 {[%clk 0:02:45]}  Bxc3 {[%clk 0:02:28]} 10. Bxc3 {[%clk 0:02:44]}  Ne4 {[%clk 0:02:28]} 11. Bd3 {[%clk 0:02:45]}  Nxc3 {[%clk 0:02:28]} 12. Qxc3 {[%clk 0:02:45]}  a5 {[%clk 0:02:18]} 13. O-O {[%clk 0:02:39]}  a4 {[%clk 0:02:17]} 14. Rac1 {[%clk 0:02:38]}  Bd7 {[%clk 0:02:17]} 15. e4 {[%clk 0:02:32]}  dxe4 {[%clk 0:02:08]} 16. Bxe4 {[%clk 0:02:32]}  Be8 {[%clk 0:02:04]} 17. Rfe1 {[%clk 0:02:25]}  Qf6 {[%clk 0:01:44]} 18. Rcd1 {[%clk 0:02:24]}  Na5 {[%clk 0:01:41]} 19. Ne5 {[%clk 0:02:20]}  Ra6 {[%clk 0:01:25]} 20. Rd3 {[%clk 0:02:15]}  Nb3 {[%clk 0:01:13]} 21. Rf3 {[%clk 0:02:00]}  Qg5 {[%clk 0:00:59]} 22. d5 {[%clk 0:01:10]}  Nd2 {[%clk 0:00:44]} 23. Rg3 {[%clk 0:01:00]}  Nxe4 {[%clk 0:00:43]} 24. Rxe4 {[%clk 0:01:01]}  Qf5 {[%clk 0:00:16]} 25. Nc6 {[%clk 0:00:53]} 1-0


[Site "https://www.chess.com"]

[Event "Titled Tuesday Blitz September 27 Early 2022"]
[White "Sharifov, Mekhriddin"]
[Black "Balkum, Alexander"]
[WhiteFideId "14701545"]
[BlackFideId "2005069"]
[WhiteElo "1540"]
[BlackElo "2381"]
[Result "0-1"]
[Round "09"]
[TimeControl "180+1"]
[Date "2022.09.27"]
[WhiteClock "0:00:43"]
[BlackClock "0:00:39"]

1. e4 {[%clk 0:02:59]}  c5 {[%clk 0:02:59]} 2. Nf3 {[%clk 0:02:59]}  Nc6 {[%clk 0:02:59]} 3. d4 {[%clk 0:02:59]}  cxd4 {[%clk 0:02:59]} 4. Nxd4 {[%clk 0:03:00]}  Nf6 {[%clk 0:02:59]} 5. Nc3 {[%clk 0:03:01]}  d6 {[%clk 0:02:59]} 6. Bc4 {[%clk 0:03:00]}  e5 {[%clk 0:02:59]} 7. Nde2 {[%clk 0:02:45]}  Be6 {[%clk 0:02:59]} 8. Nd5 {[%clk 0:02:38]}  Nxe4 {[%clk 0:02:44]} 9. O-O {[%clk 0:02:33]}  Be7 {[%clk 0:02:12]} 10. Kh1 {[%clk 0:02:21]}  O-O {[%clk 0:02:09]} 11. f4 {[%clk 0:02:22]}  Bg4 {[%clk 0:01:37]} 12. Be3 {[%clk 0:02:11]}  Rc8 {[%clk 0:01:27]} 13. Bd3 {[%clk 0:01:57]}  f5 {[%clk 0:01:17]} 14. Qe1 {[%clk 0:01:49]}  Bh4 {[%clk 0:01:08]} 15. g3 {[%clk 0:01:47]}  Bf6 {[%clk 0:01:07]} 16. c4 {[%clk 0:01:44]}  Ne7 {[%clk 0:01:05]} 17. Nxf6+ {[%clk 0:01:41]}  Rxf6 {[%clk 0:01:05]} 18. Rd1 {[%clk 0:01:08]}  Qe8 {[%clk 0:00:49]} 19. Bxa7 {[%clk 0:00:58]}  Rh6 {[%clk 0:00:44]} 20. Bg1 {[%clk 0:00:51]}  Qh5 {[%clk 0:00:40]} 21. fxe5 {[%clk 0:00:43]}  Bf3+ {[%clk 0:00:39]} 0-1


[Site "https://www.chess.com"]

[Event "Titled Tuesday Blitz September 27 Early 2022"]
[White "Shashikant, Kutwal"]
[Black "Bashirli, Saadat"]
[WhiteFideId "5006520"]
[BlackFideId "13429990"]
[WhiteElo "2321"]
[BlackElo "1173"]
[Result "1-0"]
[Round "09"]
[TimeControl "180+1"]
[Date "2022.09.27"]
[WhiteClock "0:00:02"]
[BlackClock "0:00:15"]

1. e4 {[%clk 0:02:57]}  c5 {[%clk 0:03:00]} 2. Nf3 {[%clk 0:02:57]}  g6 {[%clk 0:03:00]} 3. d4 {[%clk 0:02:57]}  cxd4 {[%clk 0:03:01]} 4. Nxd4 {[%clk 0:02:58]}  Nc6 {[%clk 0:03:02]} 5. c4 {[%clk 0:02:57]}  Nf6 {[%clk 0:03:00]} 6. Nc3 {[%clk 0:02:56]}  Nxd4 {[%clk 0:03:00]} 7. Qxd4 {[%clk 0:02:55]}  d6 {[%clk 0:03:00]} 8. Bg5 {[%clk 0:02:33]}  Bg7 {[%clk 0:03:00]} 9. Qd2 {[%clk 0:02:33]}  O-O {[%clk 0:03:00]} 10. Be2 {[%clk 0:02:22]}  Be6 {[%clk 0:03:00]} 11. O-O {[%clk 0:02:17]}  a5 {[%clk 0:03:00]} 12. Rad1 {[%clk 0:02:10]}  a4 {[%clk 0:03:00]} 13. Qf4 {[%clk 0:01:39]}  Qa5 {[%clk 0:02:56]} 14. Nd5 {[%clk 0:01:33]}  Bxd5 {[%clk 0:02:53]} 15. exd5 {[%clk 0:01:23]}  Rfc8 {[%clk 0:02:50]} 16. Rfe1 {[%clk 0:01:01]}  Rc7 {[%clk 0:02:43]} 17. h4 {[%clk 0:00:53]}  Rac8 {[%clk 0:02:31]} 18. h5 {[%clk 0:00:28]}  a3 {[%clk 0:02:16]} 19. b3 {[%clk 0:00:26]}  Qc3 {[%clk 0:02:14]} 20. h6 {[%clk 0:00:22]}  Bh8 {[%clk 0:02:13]} 21. Bd3 {[%clk 0:00:18]}  Qb2 {[%clk 0:02:06]} 22. Rd2 {[%clk 0:00:18]}  Qc3 {[%clk 0:02:04]} 23. Bb1 {[%clk 0:00:16]}  Nh5 {[%clk 0:01:58]} 24. Qh4 {[%clk 0:00:13]}  Nf6 {[%clk 0:01:53]} 25. Rde2 {[%clk 0:00:12]}  Re8 {[%clk 0:01:47]} 26. Bd2 {[%clk 0:00:12]}  Qa1 {[%clk 0:01:24]} 27. Ba5 {[%clk 0:00:12]}  Rd7 {[%clk 0:01:15]} 28. Bf5 {[%clk 0:00:10]}  Qxe1+ {[%clk 0:01:06]} 29. Bxe1 {[%clk 0:00:11]}  gxf5 {[%clk 0:01:06]} 30. Qg5+ {[%clk 0:00:11]}  Kf8 {[%clk 0:01:06]} 31. Qxf5 {[%clk 0:00:11]}  Rc8 {[%clk 0:00:58]} 32. Bc3 {[%clk 0:00:10]}  Rdd8 {[%clk 0:00:43]} 33. g4 {[%clk 0:00:07]}  Kg8 {[%clk 0:00:27]} 34. g5 {[%clk 0:00:02]}  Nd7 {[%clk 0:00:16]} 35. Bxh8 {[%clk 0:00:02]}  Kxh8 {[%clk 0:00:17]} 36. Rxe7 {[%clk 0:00:02]}  Ne5 {[%clk 0:00:15]} 37. Qf6+ {[%clk 0:00:03]}  Kg8 {[%clk 0:00:15]} 38. Qg7# {[%clk 0:00:02]} 1-0


[Site "https://www.chess.com"]

[Event "Titled Tuesday Blitz September 27 Early 2022"]
[White "Skliarov, Viktor"]
[Black "Ronka, Erik"]
[WhiteFideId "14106736"]
[BlackFideId "505080"]
[WhiteElo "2213"]
[BlackElo "2264"]
[Result "1-0"]
[Round "09"]
[TimeControl "180+1"]
[Date "2022.09.27"]
[WhiteClock "0:00:06"]
[BlackClock "0:00:11"]

1. e4 {[%clk 0:03:00]}  c6 {[%clk 0:02:57]} 2. d4 {[%clk 0:02:59]}  d5 {[%clk 0:02:58]} 3. e5 {[%clk 0:03:00]}  Qc7 {[%clk 0:02:56]} 4. Bd3 {[%clk 0:02:52]}  c5 {[%clk 0:02:56]} 5. c3 {[%clk 0:02:26]}  Nc6 {[%clk 0:02:54]} 6. Ne2 {[%clk 0:02:22]}  Bg4 {[%clk 0:02:52]} 7. f3 {[%clk 0:02:12]}  Bd7 {[%clk 0:02:49]} 8. O-O {[%clk 0:02:09]}  e6 {[%clk 0:02:47]} 9. a3 {[%clk 0:02:02]}  f6 {[%clk 0:02:41]} 10. exf6 {[%clk 0:01:44]}  Nxf6 {[%clk 0:02:42]} 11. Bf4 {[%clk 0:01:44]}  Bd6 {[%clk 0:02:42]} 12. Bxd6 {[%clk 0:01:45]}  Qxd6 {[%clk 0:02:43]} 13. b4 {[%clk 0:01:45]}  b6 {[%clk 0:02:39]} 14. Qe1 {[%clk 0:01:23]}  O-O {[%clk 0:02:36]} 15. Qg3 {[%clk 0:01:15]}  Qxg3 {[%clk 0:02:36]} 16. hxg3 {[%clk 0:01:15]}  a5 {[%clk 0:02:35]} 17. b5 {[%clk 0:01:13]}  Na7 {[%clk 0:02:32]} 18. a4 {[%clk 0:01:11]}  Rfe8 {[%clk 0:02:18]} 19. f4 {[%clk 0:00:49]}  Nc8 {[%clk 0:02:16]} 20. Nd2 {[%clk 0:00:47]}  Ng4 {[%clk 0:02:09]} 21. Nf3 {[%clk 0:00:43]}  Nd6 {[%clk 0:02:07]} 22. Ne5 {[%clk 0:00:42]}  Nxe5 {[%clk 0:02:05]} 23. dxe5 {[%clk 0:00:33]}  Nf7 {[%clk 0:02:02]} 24. g4 {[%clk 0:00:30]}  Nh6 {[%clk 0:02:00]} 25. g5 {[%clk 0:00:27]}  Nf7 {[%clk 0:01:35]} 26. g6 {[%clk 0:00:20]}  hxg6 {[%clk 0:01:36]} 27. Bxg6 {[%clk 0:00:21]}  Red8 {[%clk 0:01:35]} 28. Kf2 {[%clk 0:00:19]}  Nh8 {[%clk 0:01:32]} 29. Bd3 {[%clk 0:00:18]}  Rac8 {[%clk 0:01:31]} 30. g4 {[%clk 0:00:17]}  Be8 {[%clk 0:01:27]} 31. Kg3 {[%clk 0:00:17]}  Nf7 {[%clk 0:01:26]} 32. Rh1 {[%clk 0:00:13]}  Kf8 {[%clk 0:01:00]} 33. Rh7 {[%clk 0:00:10]}  Rc7 {[%clk 0:00:48]} 34. Rf1 {[%clk 0:00:10]}  Kg8 {[%clk 0:00:31]} 35. Rfh1 {[%clk 0:00:09]}  Kf8 {[%clk 0:00:28]} 36. Bg6 {[%clk 0:00:09]}  d4 {[%clk 0:00:26]} 37. cxd4 {[%clk 0:00:08]}  cxd4 {[%clk 0:00:27]} 38. Bd3 {[%clk 0:00:08]}  Rc3 {[%clk 0:00:09]} 39. Nxc3 {[%clk 0:00:08]}  dxc3 {[%clk 0:00:10]} 40. Bg6 {[%clk 0:00:07]}  Rd4 {[%clk 0:00:07]} 41. Rc1 {[%clk 0:00:07]}  Rc4 {[%clk 0:00:07]} 42. f5 {[%clk 0:00:06]}  Nxe5 {[%clk 0:00:07]} 43. Rh8+ {[%clk 0:00:07]}  Ke7 {[%clk 0:00:08]} 44. Rxe8+ {[%clk 0:00:07]}  Kf6 {[%clk 0:00:08]} 45. Rxe6+ {[%clk 0:00:08]}  Kg5 {[%clk 0:00:09]} 46. Rxe5 {[%clk 0:00:08]}  c2 {[%clk 0:00:08]} 47. Re2 {[%clk 0:00:08]}  Rc3+ {[%clk 0:00:08]} 48. Kf2 {[%clk 0:00:08]}  Rc4 {[%clk 0:00:08]} 49. Rexc2 {[%clk 0:00:07]}  Rf4+ {[%clk 0:00:08]} 50. Ke3 {[%clk 0:00:08]}  Rxa4 {[%clk 0:00:08]} 51. Rc4 {[%clk 0:00:08]}  Ra3+ {[%clk 0:00:08]} 52. R1c3 {[%clk 0:00:08]}  Ra2 {[%clk 0:00:09]} 53. Bh5 {[%clk 0:00:07]}  Rh2 {[%clk 0:00:07]} 54. Rc6 {[%clk 0:00:07]}  a4 {[%clk 0:00:06]} 55. Rg6+ {[%clk 0:00:07]}  Kh4 {[%clk 0:00:07]} 56. Kd4 {[%clk 0:00:06]}  a3 {[%clk 0:00:07]} 57. Rxa3 {[%clk 0:00:06]}  Rd2+ {[%clk 0:00:07]} 58. Rd3 {[%clk 0:00:06]}  Rc2 {[%clk 0:00:06]} 59. Rxb6 {[%clk 0:00:03]}  Rc4+ {[%clk 0:00:06]} 60. Kxc4 {[%clk 0:00:04]}  g5 {[%clk 0:00:07]} 61. Bf7 {[%clk 0:00:03]}  Kxg4 {[%clk 0:00:07]} 62. f6 {[%clk 0:00:04]}  Kf4 {[%clk 0:00:07]} 63. Bh5 {[%clk 0:00:04]}  g4 {[%clk 0:00:08]} 64. Bxg4 {[%clk 0:00:04]}  Kg5 {[%clk 0:00:08]} 65. f7 {[%clk 0:00:04]}  Kh4 {[%clk 0:00:09]} 66. f8=Q {[%clk 0:00:05]}  Kxg4 {[%clk 0:00:10]} 67. Qg7+ {[%clk 0:00:05]}  Kh5 {[%clk 0:00:11]} 68. Rd5+ {[%clk 0:00:05]}  Kh4 {[%clk 0:00:11]} 69. Rh6# {[%clk 0:00:06]} 1-0


[Site "https://www.chess.com"]

[Event "Titled Tuesday Blitz September 27 Early 2022"]
[White "So, Wesley"]
[Black "Girel, Joseph"]
[WhiteFideId "5202213"]
[BlackFideId "36033561"]
[WhiteElo "2763"]
[BlackElo "2104"]
[Result "1-0"]
[Round "09"]
[TimeControl "180+1"]
[Date "2022.09.27"]
[WhiteClock "0:00:53"]
[BlackClock "0:00:22"]

1. Nf3 {[%clk 0:02:57]}  d5 {[%clk 0:02:56]} 2. c4 {[%clk 0:02:56]}  e6 {[%clk 0:02:56]} 3. e3 {[%clk 0:02:55]}  Nf6 {[%clk 0:02:55]} 4. Nc3 {[%clk 0:02:55]}  b6 {[%clk 0:02:55]} 5. cxd5 {[%clk 0:02:47]}  exd5 {[%clk 0:02:56]} 6. b3 {[%clk 0:02:43]}  Bd6 {[%clk 0:02:53]} 7. Bb2 {[%clk 0:02:43]}  O-O {[%clk 0:02:52]} 8. g3 {[%clk 0:02:38]}  Bb7 {[%clk 0:02:49]} 9. Bg2 {[%clk 0:02:38]}  Nbd7 {[%clk 0:02:48]} 10. O-O {[%clk 0:02:31]}  Re8 {[%clk 0:02:48]} 11. Rc1 {[%clk 0:02:24]}  a6 {[%clk 0:02:46]} 12. Re1 {[%clk 0:02:23]}  Ne4 {[%clk 0:02:39]} 13. Ne2 {[%clk 0:02:18]}  Ndf6 {[%clk 0:02:36]} 14. d3 {[%clk 0:02:03]}  Nc5 {[%clk 0:01:59]} 15. Ned4 {[%clk 0:02:00]}  Nfd7 {[%clk 0:01:44]} 16. a3 {[%clk 0:01:46]}  Ne6 {[%clk 0:01:35]} 17. Nc6 {[%clk 0:01:43]}  Bxc6 {[%clk 0:01:18]} 18. Rxc6 {[%clk 0:01:44]}  a5 {[%clk 0:01:17]} 19. Nh4 {[%clk 0:01:36]}  Be5 {[%clk 0:00:59]} 20. d4 {[%clk 0:01:23]}  Bf6 {[%clk 0:00:59]} 21. Bxd5 {[%clk 0:01:19]}  Bxh4 {[%clk 0:00:58]} 22. gxh4 {[%clk 0:01:20]}  Qxh4 {[%clk 0:00:56]} 23. Qf3 {[%clk 0:01:15]}  Nf6 {[%clk 0:00:39]} 24. Rxe6 {[%clk 0:01:07]}  fxe6 {[%clk 0:00:23]} 25. Bxa8 {[%clk 0:01:06]}  Ng4 {[%clk 0:00:23]} 26. h3 {[%clk 0:00:53]}  Rf8 {[%clk 0:00:22]} 27. Qg3 {[%clk 0:00:53]} 1-0


[Site "https://www.chess.com"]

[Event "Titled Tuesday Blitz September 27 Early 2022"]
[White "Srihari L R"]
[Black "Kamsky, Gata"]
[WhiteFideId "46617116"]
[BlackFideId "2000024"]
[WhiteElo "2208"]
[BlackElo "2666"]
[Result "1/2-1/2"]
[Round "09"]
[TimeControl "180+1"]
[Date "2022.09.27"]
[WhiteClock "0:00:55"]
[BlackClock "0:00:31"]

1. d4 {[%clk 0:02:58]}  f5 {[%clk 0:02:56]} 2. c4 {[%clk 0:02:45]}  Nf6 {[%clk 0:02:55]} 3. Nc3 {[%clk 0:02:45]}  e6 {[%clk 0:02:53]} 4. g3 {[%clk 0:02:44]}  Bb4 {[%clk 0:02:52]} 5. Bg2 {[%clk 0:02:44]}  Bxc3+ {[%clk 0:02:44]} 6. bxc3 {[%clk 0:02:43]}  O-O {[%clk 0:02:44]} 7. Nf3 {[%clk 0:02:43]}  Nc6 {[%clk 0:02:37]} 8. O-O {[%clk 0:02:41]}  d6 {[%clk 0:02:36]} 9. Rb1 {[%clk 0:02:39]}  b6 {[%clk 0:02:24]} 10. Ne5 {[%clk 0:02:30]}  Nxe5 {[%clk 0:01:42]} 11. Bxa8 {[%clk 0:02:19]}  Nxc4 {[%clk 0:01:42]} 12. Bg2 {[%clk 0:02:18]}  h6 {[%clk 0:01:25]} 13. Qa4 {[%clk 0:02:09]}  Na5 {[%clk 0:01:24]} 14. Re1 {[%clk 0:02:00]}  Qe8 {[%clk 0:01:23]} 15. Qxe8 {[%clk 0:01:53]}  Rxe8 {[%clk 0:01:22]} 16. f3 {[%clk 0:01:53]}  e5 {[%clk 0:01:17]} 17. e4 {[%clk 0:01:50]}  fxe4 {[%clk 0:01:16]} 18. fxe4 {[%clk 0:01:50]}  Be6 {[%clk 0:01:14]} 19. d5 {[%clk 0:01:48]}  Bd7 {[%clk 0:01:10]} 20. Bf1 {[%clk 0:01:47]}  Nb7 {[%clk 0:01:08]} 21. Ba3 {[%clk 0:01:43]}  Rf8 {[%clk 0:00:57]} 22. Ba6 {[%clk 0:01:36]}  Nc5 {[%clk 0:00:54]} 23. Bxc5 {[%clk 0:01:36]}  dxc5 {[%clk 0:00:55]} 24. Bd3 {[%clk 0:01:33]}  Ne8 {[%clk 0:00:52]} 25. Rf1 {[%clk 0:01:32]}  Nd6 {[%clk 0:00:47]} 26. Rxf8+ {[%clk 0:01:20]}  Kxf8 {[%clk 0:00:47]} 27. Kf2 {[%clk 0:01:17]}  Bg4 {[%clk 0:00:46]} 28. Ke3 {[%clk 0:01:15]}  Ke7 {[%clk 0:00:45]} 29. Rf1 {[%clk 0:01:01]}  a5 {[%clk 0:00:44]} 30. c4 {[%clk 0:01:00]}  Bc8 {[%clk 0:00:41]} 31. Kd2 {[%clk 0:00:59]}  Bh3 {[%clk 0:00:41]} 32. Rf2 {[%clk 0:00:58]}  Bg4 {[%clk 0:00:35]} 33. Ke3 {[%clk 0:00:56]}  Bc8 {[%clk 0:00:34]} 34. Kd2 {[%clk 0:00:55]}  Bg4 {[%clk 0:00:31]} 35. Ke3 {[%clk 0:00:55]}  Bc8 {[%clk 0:00:31]} 36. Kd2 {[%clk 0:00:55]}  Bg4 {[%clk 0:00:31]} 1/2-1/2


[Site "https://www.chess.com"]

[Event "Titled Tuesday Blitz September 27 Early 2022"]
[White "Suleymanli, Suleyman"]
[Black "Saydaliev, Saidakbar"]
[WhiteFideId "13416375"]
[BlackFideId "14203693"]
[WhiteElo "1652"]
[BlackElo "2265"]
[Result "0-1"]
[Round "09"]
[TimeControl "180+1"]
[Date "2022.09.27"]
[WhiteClock "0:00:20"]
[BlackClock "0:00:14"]

1. Nf3 {[%clk 0:03:00]}  Nf6 {[%clk 0:02:59]} 2. g3 {[%clk 0:02:59]}  b5 {[%clk 0:02:58]} 3. Bg2 {[%clk 0:03:00]}  Bb7 {[%clk 0:02:58]} 4. d4 {[%clk 0:03:01]}  e6 {[%clk 0:02:58]} 5. O-O {[%clk 0:03:02]}  Be7 {[%clk 0:02:58]} 6. a4 {[%clk 0:03:02]}  a6 {[%clk 0:02:57]} 7. axb5 {[%clk 0:03:01]}  axb5 {[%clk 0:02:58]} 8. Rxa8 {[%clk 0:03:02]}  Bxa8 {[%clk 0:02:58]} 9. b3 {[%clk 0:03:00]}  O-O {[%clk 0:02:58]} 10. Bb2 {[%clk 0:03:01]}  b4 {[%clk 0:02:58]} 11. Nbd2 {[%clk 0:03:01]}  d5 {[%clk 0:02:58]} 12. Re1 {[%clk 0:03:00]}  Nbd7 {[%clk 0:02:58]} 13. Ne5 {[%clk 0:02:59]}  c5 {[%clk 0:02:55]} 14. dxc5 {[%clk 0:02:57]}  Bxc5 {[%clk 0:02:55]} 15. Ndf3 {[%clk 0:02:56]}  Qb6 {[%clk 0:02:53]} 16. e3 {[%clk 0:02:54]}  Rc8 {[%clk 0:02:52]} 17. Nxd7 {[%clk 0:02:53]}  Nxd7 {[%clk 0:02:52]} 18. Ng5 {[%clk 0:02:53]}  h6 {[%clk 0:02:47]} 19. Nh3 {[%clk 0:02:49]}  Be7 {[%clk 0:02:43]} 20. Bd4 {[%clk 0:02:45]}  Qc7 {[%clk 0:02:43]} 21. Nf4 {[%clk 0:02:45]}  e5 {[%clk 0:02:36]} 22. Bxe5 {[%clk 0:02:28]}  Qxe5 {[%clk 0:02:31]} 23. Bxd5 {[%clk 0:02:28]}  Bxd5 {[%clk 0:02:30]} 24. Nxd5 {[%clk 0:02:29]}  Bf8 {[%clk 0:02:28]} 25. Qf3 {[%clk 0:02:25]}  Nc5 {[%clk 0:02:23]} 26. Nxb4 {[%clk 0:02:19]}  Qe4 {[%clk 0:02:20]} 27. Qxe4 {[%clk 0:02:12]}  Nxe4 {[%clk 0:02:21]} 28. Nd3 {[%clk 0:02:07]}  Rxc2 {[%clk 0:02:21]} 29. Rb1 {[%clk 0:02:06]}  Rd2 {[%clk 0:02:19]} 30. Nf4 {[%clk 0:02:05]}  Bb4 {[%clk 0:02:09]} 31. Rf1 {[%clk 0:01:58]}  g5 {[%clk 0:02:07]} 32. Nh5 {[%clk 0:01:56]}  Rb2 {[%clk 0:02:04]} 33. f3 {[%clk 0:01:55]}  Nd2 {[%clk 0:01:56]} 34. Rf2 {[%clk 0:01:55]}  Rxb3 {[%clk 0:01:51]} 35. Nf6+ {[%clk 0:01:55]}  Kg7 {[%clk 0:01:51]} 36. Nd5 {[%clk 0:01:56]}  Ba5 {[%clk 0:01:50]} 37. Kg2 {[%clk 0:01:56]}  f5 {[%clk 0:01:42]} 38. h4 {[%clk 0:01:52]}  Rd3 {[%clk 0:01:42]} 39. Ne7 {[%clk 0:01:41]}  Kf6 {[%clk 0:01:13]} 40. Nc6 {[%clk 0:01:40]}  Bb6 {[%clk 0:01:11]} 41. Nb4 {[%clk 0:01:40]}  Rd6 {[%clk 0:01:06]} 42. hxg5+ {[%clk 0:01:39]}  hxg5 {[%clk 0:01:06]} 43. Re2 {[%clk 0:01:39]}  g4 {[%clk 0:00:50]} 44. fxg4 {[%clk 0:01:37]}  fxg4 {[%clk 0:00:50]} 45. e4 {[%clk 0:01:38]}  Nf3 {[%clk 0:00:45]} 46. Nd5+ {[%clk 0:01:24]}  Ke5 {[%clk 0:00:45]} 47. Rb2 {[%clk 0:01:07]}  Bd4 {[%clk 0:00:43]} 48. Rb8 {[%clk 0:01:04]}  Rh6 {[%clk 0:00:37]} 49. Re8+ {[%clk 0:01:03]}  Kd6 {[%clk 0:00:38]} 50. Rd8+ {[%clk 0:01:01]}  Ke6 {[%clk 0:00:22]} 51. Nf4+ {[%clk 0:00:58]}  Ke7 {[%clk 0:00:23]} 52. Rxd4 {[%clk 0:00:39]}  Rh2+ {[%clk 0:00:20]} 53. Kf1 {[%clk 0:00:37]}  Nxd4 {[%clk 0:00:21]} 54. Nd5+ {[%clk 0:00:35]}  Ke6 {[%clk 0:00:19]} 55. Ne3 {[%clk 0:00:36]}  Rh3 {[%clk 0:00:19]} 56. Kg2 {[%clk 0:00:35]}  Ne2 {[%clk 0:00:17]} 57. Kf2 {[%clk 0:00:30]}  Nxg3 {[%clk 0:00:16]} 58. Nxg4 {[%clk 0:00:26]}  Nxe4+ {[%clk 0:00:16]} 59. Ke2 {[%clk 0:00:26]}  Rg3 {[%clk 0:00:17]} 60. Ne3 {[%clk 0:00:25]}  Ke5 {[%clk 0:00:17]} 61. Nf1 {[%clk 0:00:23]}  Rg2+ {[%clk 0:00:15]} 62. Ke3 {[%clk 0:00:24]}  Ra2 {[%clk 0:00:12]} 63. Kd3 {[%clk 0:00:17]}  Kf4 {[%clk 0:00:12]} 64. Kd4 {[%clk 0:00:13]}  Rf2 {[%clk 0:00:11]} 65. Kd3 {[%clk 0:00:13]}  Rxf1 {[%clk 0:00:11]} 66. Ke2 {[%clk 0:00:14]}  Rf2+ {[%clk 0:00:11]} 67. Kd3 {[%clk 0:00:14]}  Rd2+ {[%clk 0:00:11]} 68. Kc4 {[%clk 0:00:15]}  Ke3 {[%clk 0:00:12]} 69. Kb3 {[%clk 0:00:16]}  Kd3 {[%clk 0:00:11]} 70. Ka3 {[%clk 0:00:17]}  Rc2 {[%clk 0:00:12]} 71. Ka4 {[%clk 0:00:18]}  Rb2 {[%clk 0:00:12]} 72. Ka3 {[%clk 0:00:18]}  Kc3 {[%clk 0:00:13]} 73. Ka4 {[%clk 0:00:19]}  Nc5+ {[%clk 0:00:13]} 74. Ka5 {[%clk 0:00:18]}  Nd7 {[%clk 0:00:14]} 75. Ka6 {[%clk 0:00:19]}  Kc4 {[%clk 0:00:14]} 76. Ka5 {[%clk 0:00:20]}  Rb1 {[%clk 0:00:14]} 77. Ka4 {[%clk 0:00:20]}  Ra1# {[%clk 0:00:14]} 0-1


[Site "https://www.chess.com"]